bitfinex/quotes_ETHUSD_20250623
["timestamp","ask_amount","ask_price","bid_price","bid_amount"]
[1750693751380,0.8297,2258.2,2257.3,0.2275503]
[1750693751557,9.09810258,2258.1,2257.3,0.2275503]
[1750693751758,10.12711901,2258.1,2257.3,0.2275503]
[1750693751964,1.02901643,2258.0,2257.3,0.2275503]
[1750693752146,1.02901643,2258.0,2257.3,4.65760953]
[1750693752347,1.02901643,2258.1,2257.3,4.65760953]
[1750693753135,1.02901643,2258.1,2257.3,0.2275503]
[1750693753470,0.8297,2258.2,2257.3,0.2275503]
[1750693753471,1.85871643,2258.0,2257.3,0.2275503]
[1750693753671,0.8297,2258.0,2257.3,0.2275503]
[1750693753971,3.16472065,2258.0,2257.3,0.2275503]
[1750693754176,0.8297,2258.0,2257.4,4.42983898]
[1750693754557,0.8297,2258.0,2257.4,0.8272]
[1750693754746,0.8297,2258.0,2257.4,5.25698213]
[1750693754951,0.8297,2258.0,2257.5,4.42964231]
[1750693755144,0.8297,2258.0,2257.4,0.8272]
[1750693755349,0.8297,2258.0,2257.4,5.25698304]
[1750693755760,0.8297,2258.0,2257.4,6.69577663]
[1750693756069,0.55722963,2258.0,2257.4,6.69580122]
[1750693756273,0.55722963,2258.0,2257.4,6.69578737]
[1750693756473,0.55722963,2258.0,2257.4,2.266]
[1750693756681,8.75988461,2258.3,2257.5,0.7775]
[1750693756879,1.02980121,2258.7,2257.5,10.7775]
[1750693757083,1.02980121,2258.7,2257.9,4.42873889]
[1750693757278,1.331711,2258.6,2258.0,4.42868365]
[1750693757576,1.02980121,2258.8,2258.1,0.7775]
[1750693757777,1.02980121,2259.1,2258.4,4.4278161]
[1750693757980,7.73086818,2259.2,2258.6,4.42740817]
[1750693758139,8.76066939,2259.2,2258.1,0.7775]
[1750693758342,8.76066939,2259.3,2258.7,4.42720259]
[1750693758542,10.65123633,2259.3,2258.7,4.42720259]
[1750693759095,8.76066939,2259.3,2258.8,0.7997]
[1750693759243,9.52386939,2259.7,2258.9,4.42681942]
[1750693759441,1.330793,2259.6,2258.9,4.42681942]
[1750693759939,1.330793,2259.6,2258.7,4.427227]
[1750693760138,1.330793,2259.6,2258.5,3.0657]
[1750693760338,2.20559882,2259.5,2258.7,4.4272115]
[1750693760755,0.7727,2259.4,2258.7,4.4272115]
[1750693760958,0.7727,2259.4,2258.6,6.69333598]
[1750693761137,0.7727,2259.4,2258.6,2.266]
[1750693761342,0.7727,2259.4,2258.7,4.42724523]
[1750693761574,1.87342942,2259.4,2258.6,2.266]
[1750693761753,2.90323063,2259.4,2258.6,2.266]
[1750693761961,2.90323063,2259.4,2258.6,6.69350838]
[1750693762174,2.90323063,2259.4,2258.6,6.69349989]
[1750693762496,11.20132581,2259.2,2258.1,2.266]
[1750693762646,2.92263379,2259.1,2258.3,4.42809103]
[1750693762977,7.872,2259.0,2258.3,4.4280038]
[1750693763778,0.8317,2258.9,2258.2,4.42816478]
[1750693763964,0.8317,2258.9,2258.3,4.4280211]
[1750693764151,8.6997,2258.9,2258.3,4.4280211]
[1750693764358,8.6997,2258.9,2258.1,6.69442773]
[1750693764359,9.68168326,2258.9,2258.2,4.42819269]
[1750693764655,9.68168326,2258.9,2258.2,4.42821259]
[1750693765251,0.8317,2258.9,2258.2,4.42817234]
[1750693765465,0.8317,2258.9,2258.1,6.69439695]
[1750693765684,7.73086818,2258.8,2258.1,2.266]
[1750693765858,7.73086818,2258.8,2257.8,0.7715]
[1750693766059,0.95923694,2258.7,2257.8,13.0375]
[1750693766290,0.7535,2258.5,2257.8,17.46650369]
[1750693766578,0.7535,2258.5,2257.8,16.69500369]
[1750693766786,0.7535,2258.5,2257.9,4.42883146]
[1750693766993,0.7535,2258.5,2258.0,4.42868906]
[1750693767495,7.73086818,2258.6,2258.2,4.42818943]
[1750693767675,7.73086818,2258.6,2258.0,0.7741]
[1750693767991,7.73086818,2258.6,2258.2,4.42820589]
[1750693768145,7.73086818,2258.6,2258.0,0.7741]
[1750693768349,7.73086818,2258.6,2258.2,4.42821842]
[1750693768963,7.73086818,2258.6,2258.1,4.42838521]
[1750693769468,7.73086818,2258.6,2258.1,4.42835377]
[1750693769690,7.73086818,2258.6,2258.0,5.20265512]
[1750693770089,7.73086818,2258.6,2258.0,5.20261021]
[1750693770409,7.73086818,2258.6,2258.2,4.4282733]
[1750693770903,7.73086818,2258.6,2258.0,0.7741]
[1750693771104,7.73086818,2258.6,2258.2,4.42821661]
[1750693771292,8.584585,2258.6,2258.0,5.20268724]
[1750693771601,8.584585,2258.6,2257.8,12.266]
[1750693771812,8.584585,2258.6,2257.9,4.42885271]
[1750693772168,8.584585,2258.6,2257.8,12.266]
[1750693772369,0.8216,2258.5,2257.9,4.42886664]
[1750693772581,0.8216,2258.5,2257.9,8.85761467]
[1750693772782,0.8216,2258.5,2258.0,4.42865213]
[1750693773507,0.8216,2258.5,2257.8,12.266]
[1750693773719,1.77971223,2258.5,2257.8,21.12394067]
[1750693774024,1.77971223,2258.5,2257.8,2.266]
[1750693778321,7.73086818,2258.4,2257.8,2.266]
[1750693779033,7.73086818,2258.4,2257.3,0.2275503]
[1750693779034,1.8539541,2258.3,2257.3,0.2275503]
[1750693779325,16.50835041,2258.2,2257.6,4.42941315]
[1750693779544,1.0286541,2258.1,2257.6,4.42941315]
[1750693779763,1.8539541,2258.3,2257.7,10.0]
[1750693780047,8.49826818,2259.0,2258.5,4.42770068]
[1750693780205,8.49826818,2259.0,2258.4,4.42779639]
[1750693780535,8.49826818,2259.0,2258.6,4.42737369]
[1750693780536,0.7674,2259.0,2258.6,4.42737369]
[1750693780870,0.7728,2259.3,2258.4,4.42782]
[1750693781050,1.07419112,2259.2,2258.4,4.42787858]
[1750693782223,0.7728,2259.3,2258.5,4.42770665]
[1750693782406,0.7728,2259.3,2258.6,4.42741777]
[1750693783931,0.7728,2259.3,2258.4,4.42776221]
[1750693784530,0.7728,2259.3,2258.5,4.42769742]
[1750693784933,0.7728,2259.3,2258.4,4.42791356]
[1750693785113,3.18809418,2259.3,2258.4,4.42791356]
[1750693785318,4.21847596,2259.3,2258.4,4.42791356]
[1750693785642,19.95128051,2259.2,2258.2,14.42819039]
[1750693785826,1.81888178,2259.1,2258.1,17.43389848]
[1750693786018,1.81888178,2259.0,2258.1,12.221]
[1750693786617,1.82168178,2258.9,2258.1,2.221]
[1750693786830,7.73086818,2258.8,2258.1,2.221]
[1750693787017,0.7913,2258.7,2257.8,6.64999359]
[1750693787341,12.92658555,2258.6,2257.6,4.42934779]
[1750693787551,1.85368178,2258.5,2257.7,2.221]
[1750693787841,0.8233,2258.2,2257.1,4.43042591]
[1750693788040,0.8233,2257.9,2257.0,4.430575]
[1750693788343,0.8233,2257.8,2256.9,2.221]
[1750693789056,11.19003055,2257.7,2256.9,2.221]
[1750693789258,0.8233,2257.5,2256.9,2.221]
[1750693789770,0.8233,2257.5,2256.5,4.43153222]
[1750693789771,0.8233,2257.5,2256.5,2.221]
[1750693789963,14.16373055,2257.4,2256.0,0.27067694]
[1750693790254,1.78308178,2257.4,2257.3,0.01525363]
[1750693790450,9.74200818,2257.4,2257.3,0.01525363]
[1750693790656,21.96242051,2257.4,2257.3,0.01525363]
[1750693790859,22.51242051,2257.4,2257.3,0.01525363]
[1750693791005,22.51242051,2257.4,2256.0,4.70317483]
[1750693791006,32.51242051,2257.4,2256.0,4.70317483]
[1750693791206,0.7527,2257.0,2256.0,4.70317483]
[1750693791455,9.00427306,2256.9,2256.1,4.43242407]
[1750693791600,0.7527,2257.0,2256.0,0.27067694]
[1750693791601,1.78308178,2257.0,2256.3,4.43198021]
[1750693791801,8.5597,2257.0,2256.3,4.43198021]
[1750693792005,0.7527,2257.0,2256.0,0.27067694]
[1750693792238,8.5617,2257.0,2256.1,4.43229915]
[1750693792442,0.7527,2256.9,2256.0,0.27067694]
[1750693792747,0.85617,2256.8,2256.0,4.70329022]
[1750693793043,0.85617,2256.8,2256.2,4.43204538]
[1750693793540,0.7527,2256.9,2256.4,4.43182164]
[1750693793846,0.7527,2256.9,2256.3,4.43194093]
[1750693794005,0.7527,2256.9,2256.5,4.43158659]
[1750693794206,0.8034,2257.2,2256.8,4.43096855]
[1750693794406,0.8034,2257.2,2256.3,4.43203474]
[1750693794602,0.8034,2257.2,2256.8,4.43101216]
[1750693794836,0.8034,2257.2,2256.9,4.43082124]
[1750693795041,8.26018158,2257.4,2256.9,4.43082124]
[1750693795042,11.41172537,2257.8,2257.0,4.43050819]
[1750693795236,11.36957632,2257.7,2256.8,4.43095685]
[1750693795446,11.36957632,2257.7,2256.7,4.43109313]
[1750693795447,10.36280815,2257.6,2256.7,4.43109313]
[1750693795629,11.83026704,2257.6,2256.8,4.43102903]
[1750693795824,1.3708,2257.5,2256.7,4.43115445]
[1750693796026,1.3708,2257.5,2256.5,4.43148062]
[1750693796027,0.8208,2257.5,2256.8,4.43098853]
[1750693796232,1.16248185,2257.4,2256.8,4.43098853]
[1750693796414,1.16248185,2257.4,2256.6,2.222]
[1750693796621,0.8208,2257.5,2256.6,2.222]
[1750693796814,0.8208,2257.5,2257.0,4.43065143]
[1750693797044,0.8208,2257.5,2257.0,4.43057509]
[1750693797246,0.8208,2257.5,2256.9,4.43076093]
[1750693797548,0.8208,2257.5,2256.7,4.43124916]
[1750693797843,0.8208,2257.5,2256.9,4.43076152]
[1750693798050,2.863073,2257.5,2256.9,4.43076152]
[1750693798714,2.863073,2257.5,2256.9,4.43068718]
[1750693798915,2.863073,2257.5,2257.0,4.43061711]
[1750693799815,0.8208,2257.5,2257.1,4.4303903]
[1750693800016,7.811,2257.8,2256.9,4.43085648]
[1750693800238,7.811,2257.8,2256.6,6.65341933]
[1750693800239,0.8208,2257.7,2256.4,5.19930627]
[1750693800448,0.8208,2257.7,2256.9,4.43085305]
[1750693800652,2.03718305,2257.6,2256.9,4.43085305]
[1750693800830,0.8208,2257.5,2256.6,4.43129898]
[1750693801149,0.8208,2257.5,2256.7,4.43124647]
[1750693801351,0.8208,2257.5,2256.4,0.7675]
[1750693801643,0.8208,2257.3,2256.4,4.43174598]
[1750693801812,1.08208,2257.2,2256.5,4.43154812]
[1750693802414,1.08208,2257.2,2256.6,4.43143004]
[1750693802610,1.08208,2257.2,2256.3,12.868]
[1750693802836,0.755,2257.6,2256.5,0.83]
[1750693803051,0.755,2257.6,2257.1,4.43034765]
[1750693803278,8.48586818,2257.6,2256.8,2.222]
[1750693803630,8.48586818,2257.6,2256.9,4.4307433]
[1750693804569,8.48586818,2257.6,2256.8,6.652872]
[1750693804716,8.48586818,2257.6,2257.0,4.43053248]
[1750693805050,0.43264965,2258.0,2257.7,4.42920504]
[1750693805051,0.7795,2258.0,2257.7,4.42920504]
[1750693805252,0.7795,2258.0,2257.5,4.42956792]
[1750693805450,1.63053682,2258.0,2257.5,4.42956792]
[1750693805821,1.63053682,2258.0,2257.4,4.42975373]
[1750693806017,1.63053682,2258.0,2257.5,4.4296768]
[1750693806660,1.63053682,2258.0,2257.4,4.429773]
[1750693807074,1.63053682,2258.0,2257.4,4.42987507]
[1750693807355,0.9361405,2257.9,2257.2,2.216]
[1750693807841,0.7771,2257.8,2257.1,4.43038794]
[1750693808426,0.7771,2257.8,2257.1,4.43038448]
[1750693808624,0.7771,2257.8,2257.0,6.64653874]
[1750693808826,0.7771,2257.8,2257.2,4.43016936]
[1750693809022,0.95232405,2257.7,2257.2,4.43016936]
[1750693809328,0.7771,2257.8,2257.0,2.216]
[1750693809671,0.7771,2257.8,2257.3,4.42999802]
[1750693810060,0.7771,2257.8,2257.1,4.4302793]
[1750693810360,0.7771,2257.8,2257.1,4.43036698]
[1750693810757,0.7771,2257.8,2257.0,6.64657342]
[1750693810967,1.8319531,2257.8,2257.0,2.216]
[1750693811170,1.8319531,2257.8,2257.0,6.64665093]
[1750693811466,1.8319531,2257.8,2257.1,4.43043662]
[1750693811663,1.0548531,2257.8,2257.0,4.43053894]
[1750693811976,0.781,2257.6,2256.3,12.862]
[1750693812143,0.781,2257.3,2256.3,6.64794499]
[1750693812482,8.591,2257.2,2256.5,4.4314801]
[1750693812829,8.591,2257.2,2256.6,4.43139921]
[1750693813134,0.781,2257.2,2256.5,4.43153049]
[1750693813734,0.781,2257.2,2256.6,4.43135753]
[1750693813935,1.74264947,2257.2,2256.6,4.43135753]
[1750693814726,1.74264947,2257.2,2256.7,4.43118878]
[1750693814927,0.781,2257.2,2256.7,4.43122902]
[1750693815130,0.781,2257.2,2256.3,6.64788284]
[1750693815364,0.781,2257.2,2256.5,4.43149223]
[1750693815526,0.781,2257.2,2256.0,5.49864912]
[1750693815527,0.781,2257.2,2256.6,4.4313385]
[1750693815731,0.781,2257.2,2256.4,4.43174512]
[1750693815927,1.6893,2257.1,2256.3,4.43193141]
[1750693816169,9.42016818,2257.1,2256.3,4.43193141]
[1750693816341,9.42016818,2257.1,2256.0,3.28217694]
[1750693816547,9.42016818,2257.1,2256.4,4.43165572]
[1750693816974,9.42016818,2257.1,2256.0,3.28217694]
[1750693816975,9.42016818,2257.1,2256.5,4.43163047]
[1750693817261,8.56116818,2257.1,2256.5,4.43147735]
[1750693817464,8.56116818,2257.1,2256.6,8.86261173]
[1750693817669,8.56116818,2257.1,2256.5,4.4315755]
[1750693817964,8.56116818,2257.1,2256.6,4.4313423]
[1750693818135,8.56116818,2257.1,2256.5,4.43153385]
[1750693818334,9.51993447,2257.1,2256.5,4.43147748]
[1750693818534,8.56116818,2257.1,2256.8,4.43089927]
[1750693818771,7.73086818,2257.1,2256.8,4.43096273]
[1750693819067,1.82739472,2257.4,2256.6,0.7732]
[1750693819068,1.82739472,2257.4,2257.0,4.43066016]
[1750693819244,1.82739472,2257.4,2256.6,7.4204673]
[1750693819444,1.82739472,2257.4,2256.7,4.4311298]
[1750693819630,3.3945446,2257.4,2256.8,4.4309013]
[1750693819830,3.3945446,2257.4,2256.7,4.4311588]
[1750693820831,3.3945446,2257.4,2256.6,0.7732]
[1750693821069,1.02649472,2257.3,2256.5,4.43163825]
[1750693821270,0.8292,2257.2,2256.4,6.64770891]
[1750693821566,1.17148446,2257.2,2256.5,4.43155366]
[1750693821768,1.02649472,2257.3,2256.4,6.64767375]
[1750693821769,1.02649472,2257.3,2256.6,14.78180676]
[1750693821988,1.86364661,2257.8,2257.1,4.43038358]
[1750693822136,0.8315,2257.8,2257.1,6.64638358]
[1750693822336,0.8315,2257.8,2257.3,4.43004752]
[1750693822657,0.8315,2257.8,2257.4,4.42984969]
[1750693822857,0.8315,2257.8,2257.3,4.42998131]
[1750693823051,0.8315,2257.8,2257.4,4.42976572]
[1750693823659,0.8315,2257.8,2257.5,4.42965361]
[1750693823832,1.78454661,2258.1,2257.1,7.42315533]
[1750693824037,9.94686818,2258.7,2257.1,7.42315533]
[1750693824038,0.7599,2258.4,2258.0,4.42859122]
[1750693824265,0.36280815,2258.3,2258.0,4.42859122]
[1750693824470,0.7599,2258.4,2258.0,4.42859122]
[1750693824634,0.7599,2258.4,2257.9,4.42879742]
[1750693824838,0.7599,2258.4,2257.8,6.6450308]
[1750693824839,0.7599,2258.4,2257.8,4.4290308]
[1750693825040,0.7599,2258.4,2257.8,2.216]
[1750693825374,11.47769068,2258.3,2257.8,2.216]
[1750693825568,1.03214661,2258.2,2257.8,6.64498815]
[1750693826053,1.03214661,2258.2,2257.8,2.216]
[1750693826256,0.7599,2258.4,2257.7,4.42920942]
[1750693826458,0.7637,2258.2,2257.5,4.42955153]
[1750693826774,1.07637,2258.1,2257.6,4.42937221]
[1750693827129,1.07637,2258.1,2257.8,4.42906083]
[1750693827368,1.79584661,2258.2,2257.8,4.42906083]
[1750693827571,0.7637,2258.2,2258.0,4.42850688]
[1750693827871,0.7637,2258.2,2257.5,0.7722]
[1750693827872,0.7637,2258.2,2257.9,4.42881562]
[1750693828056,0.7637,2258.2,2257.8,4.42900775]
[1750693828368,0.7637,2258.2,2257.7,4.42917535]
[1750693828573,0.7637,2258.2,2257.8,4.4290595]
[1750693829239,0.7637,2258.2,2257.8,4.42899161]
[1750693829470,0.7637,2258.2,2257.6,4.42948263]
[1750693829695,0.7637,2258.2,2257.8,4.42892494]
[1750693829875,1.94317585,2258.2,2257.8,4.42892494]
[1750693830177,15.96018261,2258.2,2257.6,2.216]
[1750693830338,1.03105847,2258.1,2257.4,4.42987507]
[1750693830535,8.76192665,2258.1,2257.5,4.42964008]
[1750693830739,8.76192665,2258.1,2257.6,4.42939683]
[1750693830954,8.80137843,2258.1,2257.5,4.42957642]
[1750693831471,8.80137843,2258.1,2257.4,4.42977023]
[1750693831652,0.7981,2258.0,2257.0,5.20954013]
[1750693831851,10.0,2258.0,2257.2,4.43023832]
[1750693832075,0.7981,2257.8,2257.0,6.64655878]
[1750693832278,0.7981,2257.7,2257.0,6.64655878]
[1750693832573,0.7981,2257.7,2257.1,4.43045924]
[1750693832773,0.7981,2257.7,2257.3,4.42997057]
[1750693832975,0.7981,2257.7,2257.4,4.42986252]
[1750693833494,0.7981,2257.7,2257.5,4.42963695]
[1750693833697,0.7981,2257.7,2257.6,4.42948263]
[1750693833869,8.52256818,2257.9,2257.2,0.7601]
[1750693834073,8.52256818,2257.9,2257.6,4.42929534]
[1750693834461,8.52256818,2257.9,2257.6,4.42948245]
[1750693834998,8.52256818,2257.9,2257.3,4.43007132]
[1750693835206,8.52256818,2257.9,2257.6,4.42939222]
[1750693835907,8.52256818,2257.9,2257.5,4.42954345]
[1750693836210,8.52256818,2257.9,2257.5,6.64554345]
[1750693836986,8.52256818,2257.9,2257.2,0.7601]
[1750693837302,10.0,2257.8,2257.2,4.43014742]
[1750693837601,0.7749,2257.5,2256.6,10.647]
[1750693837916,0.7749,2257.5,2256.6,12.861]
[1750693837917,0.7749,2257.2,2256.6,12.861]
[1750693838079,0.7749,2257.2,2256.6,17.29234903]
[1750693838266,0.7749,2257.2,2256.6,12.861]
[1750693838677,0.7749,2257.2,2256.6,17.29234692]
[1750693838862,0.7749,2257.2,2256.6,17.29232164]
[1750693839170,0.7749,2257.2,2256.1,0.768]
[1750693839171,10.8189,2257.1,2256.1,2.214]
[1750693839360,11.84881524,2257.1,2256.4,4.43167537]
[1750693839756,11.84881524,2257.1,2256.3,4.4319461]
[1750693839994,11.84881524,2257.1,2256.4,4.43181241]
[1750693840193,11.84881524,2257.1,2256.4,4.4316632]
[1750693840392,11.84881524,2257.1,2256.4,4.431741]
[1750693840793,11.84881524,2257.1,2256.5,4.43162175]
[1750693841030,11.84881524,2257.1,2256.1,2.214]
[1750693841031,11.84881524,2257.1,2256.6,4.43131658]
[1750693841315,11.84881524,2257.1,2256.7,4.43111307]
[1750693841316,0.8189,2257.1,2256.7,4.43111307]
[1750693841673,0.8189,2257.1,2256.6,6.64529796]
[1750693841910,0.8189,2257.1,2256.7,4.43116175]
[1750693842517,0.8189,2257.1,2256.7,4.43123262]
[1750693842725,0.8189,2257.1,2256.6,2.214]
[1750693843638,7.73086818,2257.0,2255.5,10.645]
[1750693843778,0.8011,2256.8,2256.0,2.48467694]
[1750693843979,0.8011,2256.8,2256.2,4.43218429]
[1750693844179,10.0,2256.7,2256.0,6.91722071]
[1750693844614,10.0,2256.7,2256.1,4.43239087]
[1750693844912,10.0,2256.7,2256.0,0.27067694]
[1750693844913,14.01700676,2256.4,2256.0,0.27067694]
[1750693845214,0.7875,2256.1,2256.0,0.27067694]
[1750693845727,0.7875,2256.4,2256.0,4.70319926]
[1750693845922,0.7875,2256.4,2256.0,0.27067694]
[1750693846492,8.5945,2256.4,2256.0,0.27067694]
[1750693846701,1.96226139,2256.3,2256.0,0.27067694]
[1750693846989,10.7657,2256.2,2256.0,0.27067694]
[1750693847901,0.7657,2256.2,2256.0,0.27067694]
[1750693853122,10.8314,2256.1,2256.0,0.27067694]
[1750693853364,11.3814,2256.1,2256.0,1e-08]
[1750693853522,14.94615794,2256.1,2256.0,1e-08]
[1750693853836,14.83951162,2256.1,2256.0,1e-08]
[1750693854717,0.8314,2256.1,2256.0,1e-08]
[1750693855258,9.1894,2256.1,2256.0,1e-08]
[1750693855647,9.62884826,2256.1,2256.0,1e-08]
[1750693855849,21.84384826,2256.1,2256.0,1e-08]
[1750693857527,11.27084826,2256.1,2256.0,1e-08]
[1750693857860,19.07884826,2256.1,2256.0,1e-08]
[1750693858361,26.80971644,2256.1,2256.0,1e-08]
[1750693858764,19.00171644,2256.1,2256.0,1e-08]
[1750693860243,7.73086818,2256.1,2256.0,1e-08]
[1750693860870,7.73086818,2256.1,2255.9,0.005]
[1750693860871,1.3792,2256.0,2255.9,0.00420001]
[1750693861070,0.8292,2255.7,2253.1,6.54996243]
[1750693861270,10.0,2255.9,2253.1,1.333087]
[1750693861271,5.33108152,2254.7,2253.1,1.333087]
[1750693861486,0.8152,2254.2,2253.0,0.8303]
[1750693861893,1.334442,2254.3,2254.2,4.43599754]
[1750693862187,0.53,2255.1,2255.0,4.4345898]
[1750693862544,1.333737,2255.4,2255.3,4.43399991]
[1750693862779,0.7862,2256.2,2254.6,0.7788]
[1750693863083,11.22529587,2255.6,2254.6,2.307]
[1750693863285,10.0,2255.5,2254.2,0.7788]
[1750693863604,10.0,2255.5,2254.3,4.43581454]
[1750693863605,11.77529587,2255.3,2254.3,4.43581454]
[1750693863881,0.7773,2255.4,2254.5,4.43544289]
[1750693864084,0.7773,2255.4,2254.2,0.7788]
[1750693864300,10.0,2255.3,2254.2,5.21489398]
[1750693864446,0.7773,2255.4,2254.8,4.43483416]
[1750693864650,0.7773,2255.4,2254.2,0.7788]
[1750693864651,0.7649,2255.7,2255.0,4.43448227]
[1750693864864,0.7649,2255.7,2255.0,2.307]
[1750693865069,0.8221,2256.1,2255.0,2.307]
[1750693865285,0.8221,2256.1,2255.4,4.4336628]
[1750693865571,0.8221,2256.1,2255.4,4.43373999]
[1750693865769,1.13521,2256.0,2255.4,4.43373999]
[1750693866070,0.8221,2256.1,2255.0,6.74152808]
[1750693866503,0.8221,2256.1,2255.8,4.43296331]
[1750693866706,0.53,2256.2,2256.1,4.43242764]
[1750693867017,0.53,2256.2,2256.0,4.43256841]
[1750693867220,0.53,2256.2,2255.8,2.307]
[1750693867416,0.53,2256.2,2256.0,4.43260046]
[1750693867576,0.53,2256.2,2256.1,4.43242764]
[1750693868410,0.7999,2256.7,2256.1,4.43237728]
[1750693868613,10.0,2256.9,2256.1,4.43237728]
[1750693868614,0.53,2256.2,2256.1,4.43242764]
[1750693870087,0.53,2256.2,2256.1,6.73942764]
[1750693870534,10.55,2257.2,2256.1,4.43228033]
[1750693870693,0.8154,2257.0,2256.1,6.73928033]
[1750693871005,1.84173852,2257.0,2256.1,6.73928033]
[1750693871406,1.84173852,2257.0,2256.1,2.307]
[1750693871910,1.84173852,2257.0,2255.9,5.18866603]
[1750693871911,0.55,2256.9,2255.9,2.307]
[1750693872108,11.57633852,2256.9,2255.9,2.307]
[1750693872309,12.23917385,2256.8,2255.9,2.307]
[1750693872511,12.23917385,2256.8,2255.7,10.652]
[1750693872512,0.55,2256.5,2255.7,10.652]
[1750693872901,11.02633852,2256.5,2255.7,10.652]
[1750693873243,1.02633852,2256.5,2255.7,15.085119]
[1750693873454,11.84173852,2256.6,2255.8,4.43300892]
[1750693873754,2.98657385,2256.5,2255.7,15.08511393]
[1750693873955,4.01291237,2256.5,2255.7,10.652]
[1750693874299,4.01291237,2256.5,2255.6,4.43337752]
[1750693874495,4.01291237,2256.5,2255.5,4.43352561]
[1750693874730,2.28463124,2256.4,2255.6,4.43340983]
[1750693874945,3.31096976,2256.4,2255.6,4.43340983]
[1750693875104,3.31096976,2256.4,2255.7,4.43318807]
[1750693875309,3.31096976,2256.4,2255.8,4.43292328]
[1750693875528,3.31096976,2256.4,2255.7,4.43310022]
[1750693875742,1.33109698,2256.3,2255.7,4.43310022]
[1750693875906,1.33109698,2256.3,2255.6,4.4333256]
[1750693876254,1.33109698,2256.3,2255.6,4.43330216]
[1750693876546,1.33109698,2256.3,2255.7,4.43319257]
[1750693876843,1.33109698,2256.3,2255.8,4.43293226]
[1750693877402,3.31096976,2256.4,2255.8,4.43293226]
[1750693877403,1.02633852,2256.4,2255.8,0.8128]
[1750693877609,0.8181,2257.0,2256.6,4.43140182]
[1750693877804,1.84443852,2257.4,2256.5,2.307]
[1750693878005,0.8181,2257.4,2256.6,5.24424553]
[1750693878207,0.8181,2257.7,2257.2,4.43010951]
[1750693878515,0.8181,2257.7,2257.2,4.43015337]
[1750693878835,0.8181,2257.7,2257.4,4.4298354]
[1750693879030,0.8181,2257.7,2257.1,2.307]
[1750693879031,0.8181,2257.7,2257.5,4.4295512]
[1750693879234,0.8181,2257.7,2257.4,4.42976533]
[1750693879409,0.8222,2258.1,2257.5,4.42965957]
[1750693879746,1.18485385,2258.0,2257.3,4.42990714]
[1750693879920,0.8222,2258.1,2257.3,4.43006265]
[1750693880119,0.8222,2258.1,2257.3,4.42987924]
[1750693880446,0.8222,2258.1,2257.2,2.307]
[1750693880447,0.55,2258.0,2257.2,2.307]
[1750693880812,1.02633852,2258.0,2257.2,2.307]
[1750693881012,0.8222,2258.1,2257.2,6.7371518]
[1750693881235,0.8222,2258.1,2257.2,2.307]
[1750693881607,0.55,2257.9,2257.2,2.307]
[1750693881806,0.55,2257.7,2255.9,11.22529587]
[1750693882108,0.55,2257.7,2256.7,6.73724835]
[1750693882311,10.0,2257.6,2256.8,4.43094961]
[1750693882622,10.0,2257.6,2256.9,4.43083562]
[1750693882823,10.0,2257.6,2256.7,6.73724082]
[1750693883028,10.0,2257.6,2257.1,4.4303598]
[1750693883651,10.8189,2257.8,2257.3,4.42996994]
[1750693883913,0.8189,2257.8,2257.5,4.42954325]
[1750693884230,0.8189,2257.8,2257.4,2.306]
[1750693884432,0.8189,2257.8,2257.0,2.306]
[1750693884630,1.08189,2257.7,2257.0,2.306]
[1750693885031,0.8189,2257.8,2257.0,2.306]
[1750693885550,0.8189,2257.8,2257.2,4.43014844]
[1750693885752,0.8189,2257.8,2257.4,4.42977415]
[1750693885927,0.8189,2257.8,2257.3,4.42998249]
[1750693886251,0.8189,2257.8,2257.0,2.306]
[1750693886252,0.8189,2257.8,2257.4,4.42985566]
[1750693886447,12.009012,2257.8,2257.4,4.42985566]
[1750693886749,12.009012,2257.8,2257.3,4.42995581]
[1750693886912,0.8189,2257.8,2257.5,4.42966737]
[1750693887314,0.8189,2257.8,2257.4,4.4297549]
[1750693887716,1.08222,2258.0,2257.5,6.73560173]
[1750693887968,0.759,2258.1,2257.5,2.306]
[1750693888112,0.759,2258.7,2257.9,4.42879815]
[1750693888438,0.759,2258.7,2257.5,2.306]
[1750693888753,0.759,2258.7,2258.3,4.42795697]
[1750693888923,0.759,2258.7,2258.2,2.306]
[1750693889314,0.759,2258.7,2258.2,6.73422974]
[1750693889548,0.759,2258.7,2258.2,2.306]
[1750693889753,0.759,2258.7,2258.2,6.73429721]
[1750693890262,0.759,2258.7,2258.2,2.306]
[1750693890559,0.759,2258.7,2258.2,6.73429271]
[1750693890759,0.759,2258.7,2258.2,2.306]
[1750693891229,0.759,2258.7,2257.6,0.8143]
[1750693891568,0.759,2258.7,2258.2,4.42817019]
[1750693891881,0.759,2259.2,2258.3,2.306]
[1750693892081,0.759,2259.2,2259.0,4.42665394]
[1750693892225,0.759,2259.5,2258.9,6.73282473]
[1750693892425,0.759,2259.5,2259.0,2.306]
[1750693892837,0.759,2259.5,2259.0,6.732677]
[1750693893166,0.759,2259.5,2259.0,6.73273603]
[1750693893675,0.759,2259.5,2259.0,2.306]
[1750693893862,0.759,2259.5,2259.1,4.42645274]
[1750693894026,1.02330327,2260.0,2259.2,4.42618579]
[1750693894362,0.7562,2259.9,2259.3,4.42599821]
[1750693894563,0.7562,2259.9,2259.1,4.42644071]
[1750693895072,0.7562,2259.9,2259.2,4.42634184]
[1750693895253,0.7562,2259.9,2259.2,4.42625269]
[1750693895655,0.7562,2259.9,2259.0,6.73271535]
[1750693895856,0.7562,2259.9,2259.0,2.306]
[1750693896028,0.7562,2259.9,2259.3,4.42598833]
[1750693896234,0.7562,2259.9,2259.3,4.42597519]
[1750693896567,0.7562,2259.9,2259.4,4.42594872]
[1750693896773,0.7562,2259.9,2258.7,4.42715894]
[1750693896774,0.7562,2260.6,2259.5,0.804]
[1750693896941,0.7562,2260.6,2259.6,6.73046154]
[1750693897129,0.7562,2260.6,2259.7,4.42532238]
[1750693897333,0.7562,2260.6,2259.6,6.73047215]
[1750693897537,0.7562,2260.6,2259.7,4.42532038]
[1750693897733,1.17784298,2260.5,2259.9,4.42488427]
[1750693898039,0.7562,2260.6,2259.6,2.305]
[1750693898354,0.7562,2260.6,2259.7,5.19146996]
[1750693898564,0.7562,2260.6,2260.1,4.42444666]